fUSD/lending_fUSD_20251118
["ID","MTS","AMOUNT","RATE_DAILY","PERIOD"]
[394336008,1763469762087,-500.0,0.0001558,2]
[394336009,1763469762120,-500.0,0.0001558,2]
[394336010,1763469762152,-500.0,0.0001558,2]
[394336011,1763469762188,-500.0,0.0001558,2]
[394336012,1763469762221,-500.0,0.0001558,2]
[394336013,1763469762254,-500.0,0.0001558,2]
[394336014,1763469762287,-500.0,0.0001558,2]
[394336015,1763469762318,-500.0,0.0001558,2]
[394336016,1763469762350,-500.0,0.0001558,2]
[394336017,1763469762382,-500.0,0.0001558,2]
[394336018,1763469762464,-500.0,0.0001558,2]
[394336019,1763469762496,-500.0,0.0001558,2]
[394336020,1763469762526,-500.0,0.0001558,2]
[394336021,1763469762557,-215.89815373,0.0001558,2]
[394336022,1763469762588,-500.0,0.0001558,2]
[394336023,1763469762620,-500.0,0.0001558,2]
[394336024,1763469762651,-500.0,0.0001558,2]
[394336025,1763469762681,-500.0,0.0001558,2]
[394336026,1763469762712,-500.0,0.0001558,2]
[394336027,1763469762744,-500.0,0.0001558,2]
[394336028,1763469762777,-68.21369254,0.0001558,2]
[394336029,1763469763045,-431.78630746,0.0001558,2]
[394336030,1763469763565,-158.04360608,0.00015581,2]
[394336031,1763469763579,-500.0,0.00015581,2]
[394336032,1763469763597,-431.78630746,0.00015581,2]
[394336033,1763469763762,-9136.43738508,0.00015581,2]
[394336034,1763469763781,-10000.01,0.00015581,2]
[394336035,1763469764018,-10000.01,0.00015581,2]
[394336036,1763469764122,-10000.01,0.00015581,2]
[394336037,1763469764249,-10000.01,0.00015581,2]
[394336038,1763469764501,-10000.01,0.00015581,2]
[394336039,1763469767187,-1200.0,0.0001558,2]
[394336040,1763469767223,-7600.01,0.00015581,2]
[394336041,1763469770092,-10000.01,0.00015581,2]
[394336042,1763469770234,-10000.01,0.00015581,2]
[394336043,1763469770379,-10000.01,0.00015581,2]
[394336044,1763469770488,-10000.01,0.00015581,2]
[394336045,1763469770607,-10000.01,0.00015581,2]
[394336046,1763469773142,-500.0,0.0001558,2]
[394336047,1763469773189,-550.0,0.0001558,2]
[394336048,1763469773229,-500.0,0.0001558,2]
[394336049,1763469773291,-500.0,0.0001558,2]
[394336050,1763469773342,-500.0,0.0001558,2]
[394336051,1763469773389,-500.0,0.0001558,2]
[394336052,1763469773436,-500.0,0.0001558,2]
[394336053,1763469773477,-500.0,0.0001558,2]
[394336054,1763469773693,-1900.01,0.00015581,2]
[394336055,1763469773716,-10000.01,0.00015581,2]
[394336056,1763469774156,-10000.01,0.00015581,2]
[394336057,1763469774177,-10000.01,0.00015581,2]
[394336058,1763469774194,-10000.01,0.00015581,2]
[394336059,1763469774252,-10000.01,0.00015581,2]
[394336060,1763469809057,-212.77031832,0.00015559,2]
[394336061,1763469809976,-500.0,0.00015559,2]
[394336062,1763469816946,-195.78791334,0.00015559,2]
[394336063,1763469817753,-445.75800732,0.00015559,2]
[394336064,1763469818638,-291.68102888,0.00015559,2]
[394336065,1763469819475,-500.0,0.00015559,2]
[394336066,1763469820450,-305.78791334,0.00015559,2]
[394336067,1763469821383,-275.56584971,0.00015559,2]
[394336068,1763469821407,-28.64623695,0.00015559,2]
[394336069,1763469822441,-500.0,0.00015559,2]
[394336070,1763469846522,2347.439036,0.00015481,2]
[394336071,1763469886793,169.92,0.00012571,2]
[394336072,1763469887040,169.92,0.00014142,2]
[394336073,1763469926084,200.0,0.00015404,2]
[394336074,1763469967265,171.86246686,0.00015458,2]
[394336078,1763470073807,-1179.15582057,0.00015512,2]
[394336079,1763470073834,-300.0,0.00015558,2]
[394336080,1763470073860,-1200.0,0.00015558,2]
[394336081,1763470073882,-300.0,0.00015558,2]
[394336082,1763470073904,-5785.3034097,0.00015559,2]
[394336083,1763470075822,-396.40226805,0.00015512,2]
[394336084,1763470075845,-1278.76678495,0.00015559,2]
[394336085,1763470075871,-329.74408661,0.00015559,2]
[394336086,1763470075897,-6984.56085719,0.00015559,2]
[394336087,1763470077748,-401.92771431,0.00015559,2]
[394336088,1763470080309,-300.0,0.00015559,2]
[394336089,1763470087507,-3761.74009001,0.00015559,2]
[394336090,1763470087538,-151.0,0.00015578,2]
[394336091,1763470087568,-151.0,0.00015578,2]
[394336092,1763470087595,-300.0,0.0001558,2]
[394336093,1763470087623,-263.0,0.0001558,2]
[394336094,1763470087720,-746.52981998,0.00015581,2]
[394336095,1763470087744,-10000.01,0.00015581,2]
[394336096,1763470087848,-10000.01,0.00015581,2]
[394336097,1763470087973,-10000.01,0.00015581,2]
[394336098,1763470088257,-10000.01,0.00015581,2]
[394336099,1763470088277,-10000.01,0.00015581,2]
[394336100,1763470088327,-10000.01,0.00015581,2]
[394336101,1763470088458,-10000.01,0.00015581,2]
[394336102,1763470088566,-10000.01,0.00015581,2]
[394336103,1763470088678,-10000.01,0.00015581,2]
[394336104,1763470090416,-10000.01,0.00015581,2]
[394336105,1763470096505,-10000.01,0.00015581,2]
[394336106,1763470096702,-10000.01,0.00015581,2]
[394336107,1763470096795,-10000.01,0.00015581,2]
[394336108,1763470096914,-10000.01,0.00015581,2]
[394336109,1763470097066,-10000.01,0.00015581,2]
[394336110,1763470097205,-10000.01,0.00015581,2]
[394336111,1763470097313,-10000.01,0.00015581,2]
[394336112,1763470097414,-10000.01,0.00015581,2]
[394336113,1763470100489,-10000.01,0.00015581,2]
[394336114,1763470100699,-10000.01,0.00015581,2]
[394336115,1763470103669,-10000.01,0.00015581,2]
[394336116,1763470103897,-10000.01,0.00015581,2]
[394336117,1763470104086,-10000.01,0.00015581,2]
[394336118,1763470104208,-10000.01,0.00015581,2]
[394336119,1763470104354,-10000.01,0.00015581,2]
[394336120,1763470104507,-10000.01,0.00015581,2]
[394336121,1763470104618,-10000.01,0.00015581,2]
[394336122,1763470104728,-10000.01,0.00015581,2]
[394336123,1763470106555,-758.05,0.0001558,2]
[394336124,1763470106584,-758.05,0.0001558,2]
[394336125,1763470106614,-758.05,0.0001558,2]
[394336126,1763470106686,-5451.71,0.00015581,2]
[394336127,1763470106712,-10000.01,0.00015581,2]
[394336128,1763470109565,-10000.01,0.00015581,2]
[394336129,1763470109680,-10000.01,0.00015581,2]
[394336130,1763470109810,-10000.01,0.00015581,2]
[394336131,1763470109952,-10000.01,0.00015581,2]
[394336132,1763470110078,-10000.01,0.00015581,2]
[394336133,1763470110199,-10000.01,0.00015581,2]
[394336134,1763470110348,-10000.01,0.00015581,2]
[394336135,1763470110464,-10000.01,0.00015581,2]
[394336136,1763470110601,-10000.01,0.00015581,2]
[394336137,1763470115602,-10000.01,0.00015581,2]
[394336138,1763470115731,-10000.01,0.00015581,2]
[394336139,1763470115839,-10000.01,0.00015581,2]
[394336140,1763470116007,-10000.01,0.00015581,2]
[394336141,1763470116111,-10000.01,0.00015581,2]
[394336142,1763470116250,-10000.01,0.00015581,2]
[394336143,1763470116366,-10000.01,0.00015581,2]
[394336144,1763470118650,-10000.01,0.00015581,2]
[394336145,1763470118964,-10000.01,0.00015581,2]
[394336146,1763470118983,-10000.01,0.00015581,2]
[394336147,1763470119022,-10000.01,0.00015581,2]
[394336148,1763470119176,-10000.01,0.00015581,2]
[394336149,1763470119298,-10000.01,0.00015581,2]
[394336150,1763470119426,-10000.01,0.00015581,2]
[394336151,1763470123927,897.67641648,0.00015496,2]
[394336152,1763470141922,200.0,0.00015419,2]
[394336162,1763470232224,-192.160632,0.00015502,2]
[394336163,1763470232233,-68.23654008,0.0001558,2]
[394336164,1763470232247,-517.89023688,0.0001558,2]
[394336166,1763470232258,-613.87322304,0.0001558,2]
[394336167,1763470232267,-300.0,0.0001558,2]
[394336168,1763470232277,-300.0,0.0001558,2]
[394336169,1763470232287,-12761.80776272,0.00015581,2]
[394336170,1763470232303,-22012.94511868,0.00015581,2]
[394336171,1763470232312,-195.0,0.00015589,2]
[394336172,1763470232323,-300.0,0.00015597,2]
[394336173,1763470232332,-6331.54,0.00015612,2]
[394336174,1763470232342,-222.2989347,0.00015673,2]
[394336175,1763470232351,-500.0,0.00015693,2]
[394336176,1763470232360,-3585.64,0.00015707,2]
[394336177,1763470232370,-169.92,0.00015713,2]
[394336178,1763470232379,-178.36,0.0001575,2]
[394336179,1763470232388,-166.66,0.00015936,2]
[394336180,1763470232397,-4262.05411009,0.0001594,2]
[394336181,1763470232407,-207.08145927,0.00016081,2]
[394336182,1763470232416,-200.0,0.000161,2]
[394336183,1763470232425,-337.0,0.00016104,2]
[394336184,1763470232434,-4567.0,0.00016121,2]
[394336185,1763470232444,-4567.0,0.00016146,2]
[394336186,1763470232453,-303.71,0.00016188,2]
[394336187,1763470232463,-150.0,0.000162,2]
[394336188,1763470232472,-150.0,0.000162,2]
[394336189,1763470232480,-150.0,0.000162,2]
[394336190,1763470232489,-150.10291529,0.000162,2]
[394336191,1763470232503,-150.12380221,0.000162,2]
[394336192,1763470232513,-150.0,0.000162,2]
[394336193,1763470232522,-150.0,0.000162,2]
[394336195,1763470232531,-150.0,0.000162,2]
[394336196,1763470232541,-63.93761757,0.000162,2]
[394336209,1763470232702,-86.06238243,0.000162,2]
[394336210,1763470232712,-150.0,0.000162,2]
[394336211,1763470232721,-150.0,0.000162,2]
[394336213,1763470232730,-150.0,0.000162,2]
[394336214,1763470232740,-150.0,0.000162,2]
[394336215,1763470232750,-150.0,0.000162,2]
[394336216,1763470232759,-150.73376493,0.000162,2]
[394336217,1763470232768,-150.0,0.000162,2]
[394336218,1763470232777,-150.0,0.000162,2]
[394336219,1763470232787,-189.83833413,0.000162,2]
[394336220,1763470232796,-150.0,0.000162,2]
[394336221,1763470232804,-219.36,0.000162,2]
[394336222,1763470232814,-151.0,0.000162,2]
[394336223,1763470232823,-1245.0,0.000162,2]
[394336224,1763470232832,-151.0,0.000162,2]
[394336225,1763470232842,-151.0,0.000162,2]
[394336226,1763470232852,-1245.0,0.000162,2]
[394336227,1763470232861,-151.0,0.000162,2]
[394336228,1763470232869,-829.0,0.000162,2]
[394336229,1763470232878,-151.0,0.000162,2]
[394336230,1763470232887,-870.08170482,0.000162,2]
[394336231,1763470232897,-151.0,0.000162,2]
[394336232,1763470232907,-1245.0,0.000162,2]
[394336233,1763470232916,-151.0,0.000162,2]
[394336234,1763470232925,-151.0,0.000162,2]
[394336235,1763470232935,-829.0,0.000162,2]
[394336236,1763470232944,-1245.0,0.000162,2]
[394336237,1763470232953,-151.0,0.000162,2]
[394336238,1763470232962,-151.0,0.000162,2]
[394336239,1763470232971,-860.52105908,0.000162,2]
[394336240,1763470232981,-1245.0,0.000162,2]
[394336241,1763470232990,-151.0,0.000162,2]
[394336242,1763470232999,-151.0,0.000162,2]
[394336243,1763470233008,-1245.0,0.000162,2]
[394336244,1763470233017,-151.0,0.000162,2]
[394336245,1763470233027,-151.0,0.000162,2]
[394336246,1763470233036,-1245.0,0.000162,2]
[394336247,1763470233045,-151.0,0.000162,2]
[394336248,1763470233054,-151.0,0.000162,2]
[394336249,1763470233064,-151.0,0.000162,2]
[394336250,1763470233074,-1245.0,0.000162,2]
[394336251,1763470233083,-151.0,0.000162,2]
[394336252,1763470233092,-151.0,0.000162,2]
[394336253,1763470233102,-1245.0,0.000162,2]
[394336254,1763470233111,-151.0,0.000162,2]
[394336255,1763470233121,-153.0,0.000162,2]
[394336256,1763470233130,-151.0,0.000162,2]
[394336257,1763470233139,-1245.0,0.000162,2]
[394336258,1763470233149,-153.0,0.000162,2]
[394336259,1763470233158,-151.0,0.000162,2]
[394336260,1763470233167,-1245.0,0.000162,2]
[394336261,1763470233177,-151.0,0.000162,2]
[394336262,1763470233186,-151.0,0.000162,2]
[394336263,1763470233195,-1245.0,0.000162,2]
[394336264,1763470233204,-153.0,0.000162,2]
[394336265,1763470233213,-151.0,0.000162,2]
[394336266,1763470233222,-151.0,0.000162,2]
[394336267,1763470233231,-153.0,0.000162,2]
[394336268,1763470233239,-1245.0,0.000162,2]
[394336269,1763470233248,-151.0,0.000162,2]
[394336270,1763470233257,-151.0,0.000162,2]
[394336271,1763470233266,-153.0,0.000162,2]
[394336272,1763470233276,-71.38828946,0.000162,2]
[394336273,1763470233288,-79.61171054,0.000162,2]
[394336274,1763470233300,-747.48828946,0.000162,2]
[394336275,1763470233326,-497.51171054,0.000162,2]
[394336276,1763470233336,-151.0,0.000162,2]
[394336277,1763470233346,-153.0,0.000162,2]
[394336278,1763470233354,-1245.0,0.000162,2]
[394336279,1763470233363,-151.0,0.000162,2]
[394336280,1763470233373,-185.98183769,0.000162,2]
[394336281,1763470233382,-153.0,0.000162,2]
[394336282,1763470233392,-1245.0,0.000162,2]
[394336283,1763470233401,-151.0,0.000162,2]
[394336284,1763470233410,-154.17847797,0.000162,2]
[394336285,1763470233419,-155.14782978,0.000162,2]
[394336286,1763470233428,-1245.0,0.000162,2]
[394336287,1763470233437,-151.0,0.000162,2]
[394336288,1763470233446,-151.0,0.000162,2]
[394336289,1763470233455,-153.0,0.000162,2]
[394336290,1763470233465,-1245.0,0.000162,2]
[394336291,1763470233474,-151.0,0.000162,2]
[394336292,1763470233484,-1245.0,0.000162,2]
[394336293,1763470233493,-153.0,0.000162,2]
[394336294,1763470233502,-151.0,0.000162,2]
[394336295,1763470233511,-1245.0,0.000162,2]
[394336296,1763470233521,-151.0,0.000162,2]
[394336297,1763470233530,-1245.0,0.000162,2]
[394336298,1763470233539,-151.0,0.000162,2]
[394336299,1763470233549,-1245.0,0.000162,2]
[394336300,1763470233558,-151.0,0.000162,2]
[394336301,1763470233568,-152.0,0.000162,2]
[394336302,1763470233577,-1245.0,0.000162,2]
[394336303,1763470233587,-151.0,0.000162,2]
[394336304,1763470233596,-152.0,0.000162,2]
[394336305,1763470233605,-1245.0,0.000162,2]
[394336306,1763470233615,-151.0,0.000162,2]
[394336307,1763470233624,-168.0158862,0.000162,2]
[394336308,1763470233633,-1245.0,0.000162,2]
[394336309,1763470233644,-151.0,0.000162,2]
[394336310,1763470233653,-152.0,0.000162,2]
[394336311,1763470233663,-1245.0,0.000162,2]
[394336312,1763470233673,-151.0,0.000162,2]
[394336313,1763470233682,-152.0,0.000162,2]
[394336314,1763470233691,-1245.0,0.000162,2]
[394336315,1763470233700,-166.68,0.00016207,2]
[394336316,1763470233709,-337.0,0.00016208,2]
[394336317,1763470233718,-200.0,0.00016224,2]
[394336318,1763470233727,-690.33,0.00016229,2]
[394336319,1763470233736,-166.66,0.00016252,2]
[394336320,1763470233745,-150.0,0.000163,2]
[394336321,1763470233755,-1215.0,0.000163,2]
[394336322,1763470233764,-337.0,0.0001631,2]
[394336323,1763470233773,-150.0,0.00016312,2]
[394336324,1763470233783,-337.0,0.00016349,2]
[394336325,1763470233794,-150.0,0.0001635,2]
[394336326,1763470233803,-296.84707176,0.00016355,2]
[394336327,1763470233812,-150.0,0.00016364,2]
[394336328,1763470233822,-150.0,0.0001638,2]
[394336329,1763470233832,-150.0,0.000164,2]
[394336330,1763470233841,-150.0,0.000164,2]
[394336331,1763470233850,-1186.0,0.000164,2]
[394336332,1763470233859,-337.0,0.00016401,2]
[394336333,1763470233868,-337.0,0.00016401,2]
[394336334,1763470233877,-337.0,0.00016405,2]
[394336335,1763470233887,-337.0,0.00016406,2]
[394336336,1763470233896,-337.0,0.00016423,2]
[394336337,1763470233905,-150.0,0.00016425,2]
[394336338,1763470233915,-500.0,0.00016438,2]
[394336339,1763470233924,-500.0,0.00016438,2]
[394336340,1763470233934,-609.31990954,0.00016438,2]
[394336341,1763470233943,-500.0,0.00016438,2]
[394336342,1763470233953,-500.0,0.00016438,2]
[394336343,1763470233962,-500.0,0.00016438,2]
[394336344,1763470233971,-500.0,0.00016438,2]
[394336345,1763470233981,-500.0,0.00016438,2]
[394336346,1763470233990,-500.0,0.00016438,2]
[394336347,1763470234000,-500.0,0.00016438,2]
[394336348,1763470234009,-500.0,0.00016438,2]
[394336349,1763470234019,-500.0,0.00016438,2]
[394336350,1763470234028,-500.0,0.00016438,2]
[394336351,1763470234038,-500.0,0.00016438,2]
[394336352,1763470234047,-500.0,0.00016438,2]
[394336353,1763470234057,-500.0,0.00016438,2]
[394336354,1763470234066,-500.0,0.00016438,2]
[394336355,1763470234076,-500.0,0.00016438,2]
[394336356,1763470234085,-500.0,0.00016438,2]
[394336357,1763470234095,-500.0,0.00016438,2]
[394336358,1763470234105,-500.0,0.00016438,2]
[394336359,1763470234114,-500.0,0.00016438,2]
[394336360,1763470234124,-500.0,0.00016438,2]
[394336361,1763470234133,-500.0,0.00016438,2]
[394336362,1763470234142,-500.0,0.00016438,2]
[394336363,1763470234151,-577.35942116,0.00016438,2]
[394336364,1763470234160,-500.0,0.00016438,2]
[394336365,1763470234169,-500.0,0.00016438,2]
[394336366,1763470234179,-512.14665661,0.00016438,2]
[394336367,1763470234188,-499.99999999,0.00016438,2]
[394336368,1763470234197,-150.0,0.00016438,2]
[394336369,1763470234207,-150.0,0.00016438,2]
[394336370,1763470234216,-202.72794992,0.00016438,2]
[394336371,1763470234225,-150.0,0.00016438,2]
[394336372,1763470234234,-500.0,0.00016438,2]
[394336373,1763470234244,-150.0,0.00016438,2]
[394336374,1763470234253,-500.0,0.00016438,2]
[394336375,1763470234262,-150.0,0.00016438,2]
[394336376,1763470234272,-500.0,0.00016438,2]
[394336377,1763470234281,-4818.67,0.00016438,2]
[394336378,1763470234291,-224.79,0.00016438,2]
[394336379,1763470234304,-150.0,0.00016457,2]
[394336380,1763470234314,-150.0,0.000165,2]
[394336381,1763470234323,-150.0,0.000165,2]
[394336382,1763470234333,-150.0,0.000165,2]
[394336383,1763470234342,-150.0,0.000165,2]
[394336384,1763470234351,-690.33,0.00016503,2]
[394336385,1763470234360,-372.0,0.00016522,2]
[394336386,1763470234369,-150.0,0.00016527,2]
[394336387,1763470234381,-1553.0,0.00016529,2]
[394336388,1763470234390,-150.0,0.00016537,2]
[394336389,1763470234399,-200.0,0.00016544,2]
[394336390,1763470234409,-614.81290343,0.00016558,2]
[394336391,1763470234418,-255.69100843,0.00016558,2]
[394336392,1763470234428,-164.25823281,0.00016558,2]
[394336393,1763470234438,-598.0,0.00016559,2]
[394336394,1763470234447,-337.0,0.0001656,2]
[394336395,1763470234456,-216.41325239,0.0001656,2]
[394336396,1763470234465,-150.0,0.0001656,2]
[394336397,1763470234474,-166.66,0.00016567,2]
[394336398,1763470234483,-150.0,0.00016575,2]
[394336399,1763470234492,-150.0,0.00016575,2]
[394336400,1763470234502,-517.6100241,0.00016575,2]
[394336401,1763470234511,-150.0,0.00016575,2]
[394336402,1763470234522,-500.0,0.00016575,2]
[394336403,1763470234532,-150.0,0.00016575,2]
[394336404,1763470234542,-500.0,0.00016575,2]
[394336405,1763470234551,-598.0,0.00016581,2]
[394336406,1763470234560,-150.0,0.000166,2]
[394336407,1763470234569,-150.0,0.000166,2]
[394336408,1763470234579,-3988.0,0.00016634,2]
[394336409,1763470234588,-150.0,0.0001665,2]
[394336410,1763470234598,-150.0,0.0001665,2]
[394336411,1763470234609,-337.0,0.00016653,2]
[394336412,1763470234619,-598.0,0.00016659,2]
[394336413,1763470234628,-150.0,0.00016691,2]
[394336414,1763470234637,-151.0,0.000167,2]
[394336415,1763470234647,-151.0,0.000167,2]
[394336416,1763470234657,-490.80318052,0.000167,2]
[394336417,1763470234666,-150.0,0.000167,2]
[394336418,1763470234676,-151.0,0.00016706,2]
[394336419,1763470234686,-151.0,0.00016707,2]
[394336420,1763470234695,-200.0,0.00016712,2]
[394336421,1763470234705,-150.0,0.00016712,2]
[394336422,1763470234714,-500.0,0.00016712,2]
[394336423,1763470234724,-150.0,0.00016712,2]
[394336424,1763470234733,-500.0,0.00016712,2]
[394336425,1763470234743,-191.12,0.00016712,2]
[394336426,1763470234752,-150.0,0.00016714,2]
[394336427,1763470234761,-1000.0,0.00016725,2]
[394336428,1763470234770,-150.0,0.00016728,2]
[394336429,1763470234780,-150.0,0.00016729,2]
[394336430,1763470234790,-300.0,0.00016731,2]
[394336431,1763470234799,-150.0,0.0001674,2]
[394336432,1763470234808,-150.0,0.00016752,2]
[394336433,1763470234819,-150.0,0.00016761,2]
[394336434,1763470234828,-150.0,0.00016762,2]
[394336435,1763470234838,-300.0,0.00016763,2]
[394336436,1763470234847,-151.83340457,0.00016764,2]
[394336437,1763470234857,-1000.0,0.00016769,2]
[394336438,1763470234866,-300.0,0.0001677,2]
[394336439,1763470234876,-690.33,0.00016777,2]
[394336440,1763470234885,-1000.0,0.00016779,2]
[394336441,1763470234896,-500.0,0.00016795,2]
[394336442,1763470234905,-1006.0,0.000168,2]
[394336443,1763470234915,-325.97619083,0.000168,2]
[394336444,1763470234925,-150.0,0.000168,2]
[394336445,1763470234935,-150.0,0.000168,2]
[394336446,1763470234944,-150.0,0.000168,2]
[394336447,1763470234954,-150.0,0.000168,2]
[394336448,1763470234964,-150.0,0.000168,2]
[394336449,1763470234974,-1000.0,0.00016812,2]
[394336450,1763470234984,-300.0,0.00016817,2]
[394336451,1763470234993,-150.0,0.00016818,2]
[394336452,1763470235002,-1000.0,0.00016823,2]
[394336453,1763470235012,-268.15,0.00016837,2]
[394336454,1763470235022,-300.0,0.00016839,2]
[394336455,1763470235031,-300.0,0.00016843,2]
[394336456,1763470235041,-150.0,0.00016849,2]
[394336457,1763470235052,-500.0,0.00016849,2]
[394336458,1763470235061,-250.0,0.00016849,2]
[394336459,1763470235071,-500.0,0.00016849,2]
[394336460,1763470235081,-300.0,0.0001685,2]
[394336461,1763470235091,-1000.0,0.00016851,2]
[394336462,1763470235101,-150.0,0.00016855,2]
[394336463,1763470235111,-1000.0,0.00016857,2]
[394336464,1763470235120,-150.0,0.00016861,2]
[394336465,1763470235129,-200.0,0.00016863,2]
[394336466,1763470235139,-300.0,0.00016864,2]
[394336467,1763470235150,-1000.0,0.00016871,2]
[394336468,1763470235159,-150.0,0.00016875,2]
[394336469,1763470235169,-300.0,0.00016875,2]
[394336470,1763470235178,-1000.0,0.0001688,2]
[394336471,1763470235188,-1000.0,0.00016881,2]
[394336472,1763470235197,-300.0,0.00016889,2]
[394336473,1763470235207,-1000.0,0.0001689,2]
[394336474,1763470235216,-1000.0,0.00016897,2]
[394336475,1763470235225,-342.64765452,0.000169,2]
[394336476,1763470235235,-150.0,0.000169,2]
[394336477,1763470235246,-296.76967794,0.000169,2]
[394336478,1763470235257,-300.0,0.0001691,2]
[394336479,1763470235266,-150.0,0.0001692,2]
[394336480,1763470235276,-1000.0,0.0001692,2]
[394336481,1763470235285,-300.0,0.00016922,2]
[394336482,1763470235298,-150.0,0.00016926,2]
[394336483,1763470235309,-1000.0,0.00016926,2]
[394336484,1763470235318,-1039.65969228,0.00016931,2]
[394336485,1763470235327,-3672.0,0.00016949,2]
[394336486,1763470235336,-150.0,0.0001695,2]
[394336487,1763470235346,-150.0,0.00016952,2]
[394336488,1763470235355,-1000.0,0.00016964,2]
[394336489,1763470235364,-1000.0,0.00016967,2]
[394336490,1763470235375,-150.0,0.00016971,2]
[394336491,1763470235385,-592.99610824,0.00016973,2]
[394336492,1763470235394,-500.0,0.00016973,2]
[394336493,1763470235403,-544.84118103,0.00016973,2]
[394336494,1763470235412,-500.0,0.00016973,2]
[394336495,1763470235422,-368.07678845,0.00016973,2]
[394336496,1763470235432,-162.26120366,0.00016973,2]
[394336497,1763470235442,-503.20529526,0.00016973,2]
[394336498,1763470235452,-500.0,0.00016973,2]
[394336499,1763470235461,-500.0,0.00016973,2]
[394336500,1763470235470,-500.0,0.00016973,2]
[394336501,1763470235480,-500.0,0.00016973,2]
[394336502,1763470235489,-500.0,0.00016973,2]
[394336503,1763470235499,-500.0,0.00016973,2]
[394336504,1763470235508,-300.0,0.00016979,2]
[394336505,1763470235517,-156.0,0.00016986,2]
[394336506,1763470235527,-322.0,0.00016986,2]
[394336507,1763470235536,-500.0,0.00016986,2]
[394336508,1763470235546,-2500.23,0.00016986,2]
[394336509,1763470235556,-150.0,0.00016987,2]
[394336510,1763470235566,-163.66,0.0001699,2]
[394336511,1763470235575,-150.0,0.00016994,2]
[394336512,1763470235586,-300.0,0.00016995,2]
[394336513,1763470235595,-500.0,0.00016999,2]
[394336514,1763470235604,-500.0,0.00016999,2]
[394336515,1763470235614,-500.0,0.00016999,2]
[394336516,1763470235623,-448.79605126,0.00016999,2]
[394336517,1763470235760,-500.0,0.00016999,2]
[394336518,1763470235798,-262.62356826,0.00016999,2]
[394336519,1763470235807,-758.05,0.00016999,2]
[394336520,1763470235817,-758.05,0.00016999,2]
[394336521,1763470235826,-758.05,0.00016999,2]
[394336522,1763470235834,-150.0,0.00017,2]
[394336523,1763470235843,-150.0,0.00017,2]
[394336524,1763470235853,-151041.08505283,0.00017,2]
[394336525,1763470235867,-37507.11343623,0.00017,2]
[394336526,1763470235879,-71053.90445674,0.00017,2]
[394336527,1763470235889,-366.13195705,0.00017,2]
[394336528,1763470235901,-398.84,0.00017,2]
[394336529,1763470235912,-3656.82895636,0.00017,2]
[394336530,1763470235929,-151.0,0.000162,2]
[394336531,1763470235939,-392.98998276,0.00017,2]
[394336532,1763470235950,-553.0612838,0.00017,2]
[394336533,1763470235961,-44010.7815,0.00017,2]
[394336534,1763470235980,-188156.92615794,0.00017,2]